[Event "Titled Tuesday Blitz November 16 2021"]
[White "Xiong, Jeffery"]
[Black "Alavi, Sayed Javad"]
[WhiteFideId "2047640"]
[BlackFideId "12500607"]
[WhiteElo "2699"]
[BlackElo "2495"]
[Result "1-0"]
[Round "02"]
[TimeControl "180+1"]
[Date "2021.11.16"]
[WhiteClock "0:02:07"]
[BlackClock "0:00:23"]

1. d4 {[%clk 0:03:00]}  Nf6 {[%clk 0:02:59]} 2. c4 {[%clk 0:03:00]}  e6 {[%clk 0:02:59]} 3. Nc3 {[%clk 0:03:00]}  d5 {[%clk 0:03:00]} 4. cxd5 {[%clk 0:02:58]}  Nxd5 {[%clk 0:02:59]} 5. e4 {[%clk 0:02:58]}  Nxc3 {[%clk 0:03:00]} 6. bxc3 {[%clk 0:02:59]}  c5 {[%clk 0:03:00]} 7. Rb1 {[%clk 0:03:00]}  Be7 {[%clk 0:03:00]} 8. Nf3 {[%clk 0:03:00]}  O-O {[%clk 0:03:00]} 9. Bc4 {[%clk 0:03:01]}  cxd4 {[%clk 0:02:34]} 10. cxd4 {[%clk 0:03:02]}  Qc7 {[%clk 0:02:35]} 11. Qe2 {[%clk 0:03:00]}  b6 {[%clk 0:02:30]} 12. O-O {[%clk 0:02:59]}  Bb7 {[%clk 0:02:30]} 13. Bd3 {[%clk 0:02:55]}  Nd7 {[%clk 0:02:26]} 14. Bb2 {[%clk 0:02:55]}  Nf6 {[%clk 0:02:04]} 15. Rbc1 {[%clk 0:02:47]}  Qd8 {[%clk 0:02:04]} 16. d5 {[%clk 0:02:37]}  exd5 {[%clk 0:02:02]} 17. e5 {[%clk 0:02:37]}  Ne4 {[%clk 0:01:58]} 18. Rfd1 {[%clk 0:02:37]}  Nc5 {[%clk 0:01:40]} 19. Nd4 {[%clk 0:02:38]}  Nxd3 {[%clk 0:01:36]} 20. Qxd3 {[%clk 0:02:38]}  Qd7 {[%clk 0:01:25]} 21. Qg3 {[%clk 0:02:38]}  g6 {[%clk 0:01:14]} 22. e6 {[%clk 0:02:37]}  fxe6 {[%clk 0:01:14]} 23. Rc7 {[%clk 0:02:37]}  Qa4 {[%clk 0:01:08]} 24. Rf1 {[%clk 0:02:21]}  Ba6 {[%clk 0:00:43]} 25. Rxe7 {[%clk 0:02:19]}  Bxf1 {[%clk 0:00:39]} 26. Qe5 {[%clk 0:02:09]}  Rf7 {[%clk 0:00:23]} 27. Nf5 {[%clk 0:02:07]} 1-0


[Site "https://www.chess.com"]

[Event "Titled Tuesday Blitz November 16 2021"]
[White "Zherebukh, Yaroslav"]
[Black "Budrewicz, Krzysztof"]
[WhiteFideId "14116804"]
[BlackFideId "1127950"]
[WhiteElo "2520"]
[BlackElo "2242"]
[Result "1/2-1/2"]
[Round "02"]
[TimeControl "180+1"]
[Date "2021.11.16"]
[WhiteClock "0:00:07"]
[BlackClock "0:00:06"]

1. e4 {[%clk 0:03:00]}  g6 {[%clk 0:02:58]} 2. d4 {[%clk 0:03:00]}  Bg7 {[%clk 0:02:58]} 3. Nc3 {[%clk 0:03:01]}  d6 {[%clk 0:02:56]} 4. Be3 {[%clk 0:03:00]}  Nf6 {[%clk 0:02:56]} 5. f3 {[%clk 0:03:00]}  O-O {[%clk 0:02:56]} 6. Qd2 {[%clk 0:02:59]}  e5 {[%clk 0:02:56]} 7. d5 {[%clk 0:02:56]}  c6 {[%clk 0:02:55]} 8. dxc6 {[%clk 0:02:56]}  Nxc6 {[%clk 0:02:51]} 9. O-O-O {[%clk 0:02:56]}  Be6 {[%clk 0:02:51]} 10. Kb1 {[%clk 0:02:28]}  Qa5 {[%clk 0:02:38]} 11. Nd5 {[%clk 0:02:00]}  Qxd2 {[%clk 0:02:34]} 12. Nxf6+ {[%clk 0:01:56]}  Bxf6 {[%clk 0:02:34]} 13. Rxd2 {[%clk 0:01:57]}  Rfd8 {[%clk 0:02:33]} 14. c4 {[%clk 0:01:53]}  a6 {[%clk 0:02:28]} 15. b3 {[%clk 0:01:47]}  Rab8 {[%clk 0:02:16]} 16. Ne2 {[%clk 0:01:44]}  b5 {[%clk 0:02:15]} 17. cxb5 {[%clk 0:01:44]}  axb5 {[%clk 0:02:15]} 18. Nc3 {[%clk 0:01:44]}  b4 {[%clk 0:02:00]} 19. Nd5 {[%clk 0:01:41]}  Bxd5 {[%clk 0:01:54]} 20. Rxd5 {[%clk 0:01:40]}  Nd4 {[%clk 0:01:48]} 21. Bc4 {[%clk 0:01:40]}  Kg7 {[%clk 0:01:47]} 22. Rc1 {[%clk 0:01:34]}  Kf8 {[%clk 0:01:41]} 23. Ra5 {[%clk 0:01:24]}  Ra8 {[%clk 0:01:37]} 24. Rxa8 {[%clk 0:01:20]}  Rxa8 {[%clk 0:01:37]} 25. Bd2 {[%clk 0:01:20]}  Rb8 {[%clk 0:01:35]} 26. Bd5 {[%clk 0:01:21]}  Bd8 {[%clk 0:01:33]} 27. Rc4 {[%clk 0:01:18]}  Ba5 {[%clk 0:01:28]} 28. Kb2 {[%clk 0:00:59]}  Ke7 {[%clk 0:01:23]} 29. Bg5+ {[%clk 0:00:53]}  f6 {[%clk 0:01:21]} 30. Be3 {[%clk 0:00:53]}  Nb5 {[%clk 0:01:11]} 31. Bd2 {[%clk 0:00:41]}  Nd4 {[%clk 0:00:43]} 32. Be1 {[%clk 0:00:41]}  Kd7 {[%clk 0:00:40]} 33. Bf2 {[%clk 0:00:40]}  Nb5 {[%clk 0:00:34]} 34. Bc6+ {[%clk 0:00:21]}  Ke6 {[%clk 0:00:34]} 35. Bxb5 {[%clk 0:00:16]}  Rxb5 {[%clk 0:00:33]} 36. Rc6 {[%clk 0:00:15]}  h5 {[%clk 0:00:25]} 37. Kc2 {[%clk 0:00:13]}  g5 {[%clk 0:00:20]} 38. Kd3 {[%clk 0:00:13]}  Bd8 {[%clk 0:00:17]} 39. Ra6 {[%clk 0:00:10]}  f5 {[%clk 0:00:13]} 40. exf5+ {[%clk 0:00:08]}  Kxf5 {[%clk 0:00:13]} 41. Rxd6 {[%clk 0:00:08]}  Be7 {[%clk 0:00:13]} 42. Rd7 {[%clk 0:00:07]}  Ke6 {[%clk 0:00:14]} 43. Ra7 {[%clk 0:00:06]}  Rd5+ {[%clk 0:00:14]} 44. Ke2 {[%clk 0:00:07]}  Bd6 {[%clk 0:00:14]} 45. Ra6 {[%clk 0:00:07]}  Kd7 {[%clk 0:00:14]} 46. Be3 {[%clk 0:00:07]}  g4 {[%clk 0:00:14]} 47. fxg4 {[%clk 0:00:07]}  hxg4 {[%clk 0:00:14]} 48. h4 {[%clk 0:00:07]}  gxh3 {[%clk 0:00:14]} 49. gxh3 {[%clk 0:00:08]}  e4 {[%clk 0:00:15]} 50. Ra7+ {[%clk 0:00:07]}  Ke6 {[%clk 0:00:14]} 51. h4 {[%clk 0:00:05]}  Rd3 {[%clk 0:00:11]} 52. Rh7 {[%clk 0:00:04]}  Kf5 {[%clk 0:00:10]} 53. Rh5+ {[%clk 0:00:02]}  Ke6 {[%clk 0:00:10]} 54. Rg5 {[%clk 0:00:02]}  Be7 {[%clk 0:00:09]} 55. Rg6+ {[%clk 0:00:02]}  Kf5 {[%clk 0:00:09]} 56. h5 {[%clk 0:00:03]}  Rd8 {[%clk 0:00:08]} 57. Rg7 {[%clk 0:00:02]}  Bf6 {[%clk 0:00:07]} 58. Rb7 {[%clk 0:00:02]}  Bc3 {[%clk 0:00:06]} 59. Rb5+ {[%clk 0:00:02]}  Kg4 {[%clk 0:00:05]} 60. h6 {[%clk 0:00:03]}  Rf8 {[%clk 0:00:03]} 61. Rg5+ {[%clk 0:00:03]}  Kh4 {[%clk 0:00:03]} 62. Rg6 {[%clk 0:00:03]}  Rf5 {[%clk 0:00:02]} 63. Re6 {[%clk 0:00:03]}  Kg3 {[%clk 0:00:02]} 64. Rxe4 {[%clk 0:00:03]}  Rh5 {[%clk 0:00:02]} 65. Kd3 {[%clk 0:00:03]}  Rh2 {[%clk 0:00:02]} 66. Bd4 {[%clk 0:00:04]}  Rd2+ {[%clk 0:00:01]} 67. Kc4 {[%clk 0:00:04]}  Rc2 {[%clk 0:00:01]} 68. Bxc3 {[%clk 0:00:03]}  bxc3 {[%clk 0:00:01]} 69. Kd3 {[%clk 0:00:03]}  Rxa2 {[%clk 0:00:01]} 70. h7 {[%clk 0:00:03]}  Rh2 {[%clk 0:00:02]} 71. Kxc3 {[%clk 0:00:03]}  Rxh7 {[%clk 0:00:02]} 72. b4 {[%clk 0:00:03]}  Kf3 {[%clk 0:00:02]} 73. Re8 {[%clk 0:00:03]}  Rc7+ {[%clk 0:00:03]} 74. Kb3 {[%clk 0:00:04]}  Kf4 {[%clk 0:00:02]} 75. b5 {[%clk 0:00:03]}  Kf5 {[%clk 0:00:03]} 76. Kb4 {[%clk 0:00:03]}  Kf6 {[%clk 0:00:03]} 77. b6 {[%clk 0:00:04]}  Rc1 {[%clk 0:00:04]} 78. Kb5 {[%clk 0:00:04]}  Kf7 {[%clk 0:00:04]} 79. Re2 {[%clk 0:00:03]}  Rb1+ {[%clk 0:00:03]} 80. Kc6 {[%clk 0:00:04]}  Rc1+ {[%clk 0:00:04]} 81. Kb7 {[%clk 0:00:04]}  Rb1 {[%clk 0:00:04]} 82. Kc7 {[%clk 0:00:04]}  Rc1+ {[%clk 0:00:04]} 83. Kb8 {[%clk 0:00:05]}  Rb1 {[%clk 0:00:05]} 84. b7 {[%clk 0:00:05]}  Rc1 {[%clk 0:00:05]} 85. Re4 {[%clk 0:00:06]}  Rc2 {[%clk 0:00:05]} 86. Ka7 {[%clk 0:00:06]}  Rc4 {[%clk 0:00:05]} 87. Kb6 {[%clk 0:00:06]}  Rxe4 {[%clk 0:00:05]} 88. Kc5 {[%clk 0:00:05]}  Re8 {[%clk 0:00:05]} 89. Kc6 {[%clk 0:00:05]}  Ke7 {[%clk 0:00:05]} 90. Kc7 {[%clk 0:00:05]}  Ke6 {[%clk 0:00:06]} 91. b8=Q {[%clk 0:00:06]}  Rxb8 {[%clk 0:00:06]} 92. Kxb8 {[%clk 0:00:07]} 1/2-1/2


[Site "https://www.chess.com"]

[Event "Titled Tuesday Blitz November 16 2021"]
[White "Zierk, Steven"]
[Black "Manukyan, Artyom"]
[WhiteFideId "2034255"]
[BlackFideId "13305786"]
[WhiteElo "2494"]
[BlackElo "2034"]
[Result "1-0"]
[Round "02"]
[TimeControl "180+1"]
[Date "2021.11.16"]
[WhiteClock "0:00:21"]
[BlackClock "0:00:06"]

1. b3 {[%clk 0:03:00]}  d5 {[%clk 0:02:58]} 2. Bb2 {[%clk 0:03:01]}  Bf5 {[%clk 0:02:56]} 3. d3 {[%clk 0:03:01]}  e6 {[%clk 0:02:56]} 4. Nd2 {[%clk 0:03:01]}  h6 {[%clk 0:02:57]} 5. g3 {[%clk 0:03:01]}  Nf6 {[%clk 0:02:57]} 6. Bg2 {[%clk 0:03:01]}  c6 {[%clk 0:02:57]} 7. Ngf3 {[%clk 0:03:00]}  Be7 {[%clk 0:02:57]} 8. O-O {[%clk 0:03:00]}  O-O {[%clk 0:02:56]} 9. Re1 {[%clk 0:02:58]}  Bh7 {[%clk 0:02:56]} 10. e4 {[%clk 0:02:58]}  a5 {[%clk 0:02:57]} 11. a3 {[%clk 0:02:56]}  a4 {[%clk 0:02:49]} 12. b4 {[%clk 0:02:56]}  Nbd7 {[%clk 0:02:47]} 13. c4 {[%clk 0:02:51]}  Qc7 {[%clk 0:02:31]} 14. Rc1 {[%clk 0:02:43]}  dxc4 {[%clk 0:02:31]} 15. dxc4 {[%clk 0:02:42]}  c5 {[%clk 0:02:32]} 16. b5 {[%clk 0:02:40]}  Rfd8 {[%clk 0:02:31]} 17. e5 {[%clk 0:02:36]}  Ne8 {[%clk 0:02:25]} 18. Qe2 {[%clk 0:02:35]}  Nf8 {[%clk 0:02:20]} 19. Ne4 {[%clk 0:02:31]}  Rd7 {[%clk 0:02:15]} 20. Red1 {[%clk 0:02:26]}  Rad8 {[%clk 0:02:14]} 21. Rxd7 {[%clk 0:02:26]}  Qxd7 {[%clk 0:02:15]} 22. Ne1 {[%clk 0:02:22]}  b6 {[%clk 0:02:10]} 23. h4 {[%clk 0:02:19]}  Bf5 {[%clk 0:02:02]} 24. h5 {[%clk 0:02:16]}  Bxe4 {[%clk 0:01:27]} 25. Bxe4 {[%clk 0:02:08]}  Qd2 {[%clk 0:01:27]} 26. Qxd2 {[%clk 0:02:03]}  Rxd2 {[%clk 0:01:28]} 27. Rc2 {[%clk 0:02:03]}  Rd1 {[%clk 0:01:25]} 28. Kf1 {[%clk 0:02:03]}  f6 {[%clk 0:01:18]} 29. Ke2 {[%clk 0:02:00]}  Rd8 {[%clk 0:01:16]} 30. Rd2 {[%clk 0:01:36]}  fxe5 {[%clk 0:01:14]} 31. Bc6 {[%clk 0:01:21]}  Nd6 {[%clk 0:01:07]} 32. Rc2 {[%clk 0:01:11]}  e4 {[%clk 0:01:07]} 33. Ng2 {[%clk 0:01:08]}  Nd7 {[%clk 0:01:05]} 34. Nf4 {[%clk 0:01:06]}  Kf7 {[%clk 0:01:04]} 35. Ng6 {[%clk 0:00:52]}  Bf6 {[%clk 0:00:58]} 36. Rd2 {[%clk 0:00:44]}  Nxc4 {[%clk 0:00:46]} 37. Bxf6 {[%clk 0:00:42]}  gxf6 {[%clk 0:00:37]} 38. Rxd7+ {[%clk 0:00:43]}  Rxd7 {[%clk 0:00:37]} 39. Bxd7 {[%clk 0:00:43]}  Nxa3 {[%clk 0:00:37]} 40. Nf4 {[%clk 0:00:44]}  e5 {[%clk 0:00:29]} 41. Nd5 {[%clk 0:00:43]}  Nc4 {[%clk 0:00:28]} 42. Nc7 {[%clk 0:00:41]}  Ke7 {[%clk 0:00:23]} 43. Be6 {[%clk 0:00:41]}  Nd6 {[%clk 0:00:19]} 44. Ba2 {[%clk 0:00:41]}  Kd7 {[%clk 0:00:18]} 45. Nd5 {[%clk 0:00:41]}  Nxb5 {[%clk 0:00:17]} 46. Nxb6+ {[%clk 0:00:41]}  Kc6 {[%clk 0:00:18]} 47. Nxa4 {[%clk 0:00:42]}  f5 {[%clk 0:00:16]} 48. Bg8 {[%clk 0:00:36]}  Nd4+ {[%clk 0:00:16]} 49. Ke3 {[%clk 0:00:36]}  Kb5 {[%clk 0:00:16]} 50. Nc3+ {[%clk 0:00:36]}  Kb4 {[%clk 0:00:16]} 51. Nd5+ {[%clk 0:00:36]}  Kb5 {[%clk 0:00:17]} 52. g4 {[%clk 0:00:32]}  fxg4 {[%clk 0:00:14]} 53. Kxe4 {[%clk 0:00:32]}  c4 {[%clk 0:00:15]} 54. Kxe5 {[%clk 0:00:29]}  Nf3+ {[%clk 0:00:14]} 55. Kf4 {[%clk 0:00:27]}  Kc5 {[%clk 0:00:13]} 56. Kxg4 {[%clk 0:00:27]}  Ne5+ {[%clk 0:00:13]} 57. Kf5 {[%clk 0:00:28]}  Nd3 {[%clk 0:00:13]} 58. Kg6 {[%clk 0:00:23]}  Nxf2 {[%clk 0:00:13]} 59. Kxh6 {[%clk 0:00:23]}  Kd4 {[%clk 0:00:11]} 60. Kg5 {[%clk 0:00:22]}  Ne4+ {[%clk 0:00:11]} 61. Kg6 {[%clk 0:00:22]}  c3 {[%clk 0:00:11]} 62. Nb4 {[%clk 0:00:22]}  Ke5 {[%clk 0:00:09]} 63. h6 {[%clk 0:00:22]}  Nf6 {[%clk 0:00:09]} 64. Nd3+ {[%clk 0:00:21]}  Kd4 {[%clk 0:00:08]} 65. Kxf6 {[%clk 0:00:21]}  Kxd3 {[%clk 0:00:08]} 66. Bb3 {[%clk 0:00:21]}  Kd2 {[%clk 0:00:04]} 67. h7 {[%clk 0:00:21]}  Kc1 {[%clk 0:00:05]} 68. h8=Q {[%clk 0:00:22]}  Kb2 {[%clk 0:00:06]} 69. Ba4 {[%clk 0:00:20]}  Ka3 {[%clk 0:00:05]} 70. Bc2 {[%clk 0:00:20]}  Kb2 {[%clk 0:00:06]} 71. Qh2 {[%clk 0:00:21]} 1-0


[Site "https://www.chess.com"]

[Event "Titled Tuesday Blitz November 16 2021"]
[White "Ahmadzada, Ahmad"]
[Black "FGHSMN"]
[WhiteFideId "13413007"]
[WhiteElo "2226"]
[BlackElo "2654"]
[Result "0-1"]
[Round "03"]
[TimeControl "180+1"]
[Date "2021.11.16"]
[WhiteClock "0:00:02"]
[BlackClock "0:00:18"]

1. e4 {[%clk 0:03:00]}  e6 {[%clk 0:02:59]} 2. d4 {[%clk 0:03:00]}  d5 {[%clk 0:02:59]} 3. exd5 {[%clk 0:03:00]}  exd5 {[%clk 0:02:59]} 4. Bd3 {[%clk 0:03:01]}  Nf6 {[%clk 0:02:59]} 5. Nf3 {[%clk 0:02:58]}  c5 {[%clk 0:02:59]} 6. O-O {[%clk 0:02:57]}  c4 {[%clk 0:02:59]} 7. Be2 {[%clk 0:02:56]}  Be7 {[%clk 0:02:58]} 8. b3 {[%clk 0:02:54]}  cxb3 {[%clk 0:02:59]} 9. axb3 {[%clk 0:02:54]}  O-O {[%clk 0:02:59]} 10. c3 {[%clk 0:02:54]}  Nc6 {[%clk 0:02:58]} 11. Bf4 {[%clk 0:02:54]}  Bf5 {[%clk 0:02:56]} 12. Nbd2 {[%clk 0:02:51]}  Re8 {[%clk 0:02:50]} 13. b4 {[%clk 0:02:40]}  Bd6 {[%clk 0:02:45]} 14. Bg5 {[%clk 0:02:35]}  h6 {[%clk 0:02:44]} 15. Bh4 {[%clk 0:02:33]}  a6 {[%clk 0:02:41]} 16. Nb3 {[%clk 0:02:24]}  g5 {[%clk 0:02:27]} 17. Bg3 {[%clk 0:02:23]}  Ne4 {[%clk 0:02:27]} 18. Rc1 {[%clk 0:02:22]}  a5 {[%clk 0:02:21]} 19. Bxd6 {[%clk 0:01:43]}  Qxd6 {[%clk 0:02:18]} 20. bxa5 {[%clk 0:01:39]}  Nxa5 {[%clk 0:02:16]} 21. Nxa5 {[%clk 0:01:23]}  Rxa5 {[%clk 0:02:16]} 22. Ne5 {[%clk 0:01:21]}  f6 {[%clk 0:02:05]} 23. Bg4 {[%clk 0:01:17]}  Bh7 {[%clk 0:01:57]} 24. Bh5 {[%clk 0:01:02]}  Rc8 {[%clk 0:01:52]} 25. Nf7 {[%clk 0:01:01]}  Qf8 {[%clk 0:01:48]} 26. Qb3 {[%clk 0:00:50]}  Nd2 {[%clk 0:01:03]} 27. Qxb7 {[%clk 0:00:50]}  Nxf1 {[%clk 0:00:49]} 28. Nxh6+ {[%clk 0:00:44]}  Kh8 {[%clk 0:00:43]} 29. Nf7+ {[%clk 0:00:43]}  Kg8 {[%clk 0:00:43]} 30. Rxf1 {[%clk 0:00:31]}  Rca8 {[%clk 0:00:43]} 31. h3 {[%clk 0:00:23]}  R8a7 {[%clk 0:00:41]} 32. Qc6 {[%clk 0:00:20]}  Rxf7 {[%clk 0:00:39]} 33. Bxf7+ {[%clk 0:00:17]}  Qxf7 {[%clk 0:00:39]} 34. Rb1 {[%clk 0:00:15]}  Ra7 {[%clk 0:00:39]} 35. Rb8+ {[%clk 0:00:14]}  Kg7 {[%clk 0:00:39]} 36. Qd6 {[%clk 0:00:13]}  Rd7 {[%clk 0:00:38]} 37. Qg3 {[%clk 0:00:12]}  Rb7 {[%clk 0:00:35]} 38. Rd8 {[%clk 0:00:12]}  Qc7 {[%clk 0:00:32]} 39. Qxc7+ {[%clk 0:00:08]}  Rxc7 {[%clk 0:00:33]} 40. Rxd5 {[%clk 0:00:09]}  Rxc3 {[%clk 0:00:33]} 41. f3 {[%clk 0:00:09]}  Rc2 {[%clk 0:00:31]} 42. Rc5 {[%clk 0:00:09]}  Rd2 {[%clk 0:00:27]} 43. Rc7+ {[%clk 0:00:08]}  Kh6 {[%clk 0:00:26]} 44. Rd7 {[%clk 0:00:08]}  Bf5 {[%clk 0:00:26]} 45. Rd6 {[%clk 0:00:08]}  Kg6 {[%clk 0:00:26]} 46. Rd8 {[%clk 0:00:09]}  Be6 {[%clk 0:00:21]} 47. Rd6 {[%clk 0:00:08]}  Ba2 {[%clk 0:00:20]} 48. Rd8 {[%clk 0:00:07]}  Kf5 {[%clk 0:00:21]} 49. Rd6 {[%clk 0:00:07]}  Bc4 {[%clk 0:00:20]} 50. Rd8 {[%clk 0:00:04]}  Kf4 {[%clk 0:00:19]} 51. Rf8 {[%clk 0:00:02]}  Kg3 {[%clk 0:00:18]} 0-1


[Site "https://www.chess.com"]

[Event "Titled Tuesday Blitz November 16 2021"]
[White "Bologan, Victor"]
[Black "Tabatabaei, M. Amin"]
[WhiteFideId "13900048"]
[BlackFideId "12521213"]
[WhiteElo "2472"]
[BlackElo "2555"]
[Result "1-0"]
[Round "03"]
[TimeControl "180+1"]
[Date "2021.11.16"]
[WhiteClock "0:00:28"]
[BlackClock "0:00:16"]

1. e4 {[%clk 0:03:00]}  c5 {[%clk 0:02:53]} 2. Nf3 {[%clk 0:03:00]}  Nc6 {[%clk 0:02:53]} 3. Bb5 {[%clk 0:02:59]}  g6 {[%clk 0:02:54]} 4. Bxc6 {[%clk 0:02:58]}  bxc6 {[%clk 0:02:55]} 5. O-O {[%clk 0:02:57]}  Bg7 {[%clk 0:02:51]} 6. Re1 {[%clk 0:02:57]}  Qc7 {[%clk 0:02:46]} 7. c3 {[%clk 0:02:44]}  Nf6 {[%clk 0:02:38]} 8. e5 {[%clk 0:02:35]}  Nd5 {[%clk 0:02:36]} 9. d4 {[%clk 0:02:32]}  cxd4 {[%clk 0:02:35]} 10. Qxd4 {[%clk 0:02:32]}  Bb7 {[%clk 0:02:21]} 11. Nbd2 {[%clk 0:02:21]}  f5 {[%clk 0:01:59]} 12. exf6 {[%clk 0:02:10]}  Bxf6 {[%clk 0:01:51]} 13. Qg4 {[%clk 0:01:59]}  O-O {[%clk 0:01:51]} 14. Ne4 {[%clk 0:01:53]}  Bg7 {[%clk 0:01:51]} 15. Qh4 {[%clk 0:01:41]}  Rf5 {[%clk 0:01:37]} 16. Ng3 {[%clk 0:01:32]}  Rxf3 {[%clk 0:01:34]} 17. gxf3 {[%clk 0:01:32]}  Rf8 {[%clk 0:01:34]} 18. c4 {[%clk 0:01:24]}  Nf4 {[%clk 0:01:05]} 19. Bxf4 {[%clk 0:01:17]}  Rxf4 {[%clk 0:00:58]} 20. Qxe7 {[%clk 0:01:16]}  c5 {[%clk 0:00:58]} 21. Rad1 {[%clk 0:01:05]}  Bc6 {[%clk 0:00:51]} 22. Qxc5 {[%clk 0:00:54]}  h5 {[%clk 0:00:40]} 23. Re8+ {[%clk 0:00:45]}  Kh7 {[%clk 0:00:36]} 24. Re7 {[%clk 0:00:42]}  Qd8 {[%clk 0:00:19]} 25. Qe5 {[%clk 0:00:34]}  Qf8 {[%clk 0:00:15]} 26. Rxg7+ {[%clk 0:00:34]}  Qxg7 {[%clk 0:00:16]} 27. Qxf4 {[%clk 0:00:34]}  Qxb2 {[%clk 0:00:17]} 28. Ne4 {[%clk 0:00:31]}  Qe2 {[%clk 0:00:16]} 29. Qf7+ {[%clk 0:00:29]}  Kh6 {[%clk 0:00:16]} 30. Qf8+ {[%clk 0:00:28]} 1-0


[Site "https://www.chess.com"]

[Event "Titled Tuesday Blitz November 16 2021"]
[White "De Silva, L M S T"]
[Black "Zierk, Steven"]
[WhiteFideId "9953698"]
[BlackFideId "2034255"]
[WhiteElo "1621"]
[BlackElo "2494"]
[Result "0-1"]
[Round "03"]
[TimeControl "180+1"]
[Date "2021.11.16"]
[WhiteClock "0:00:24"]
[BlackClock "0:00:19"]

1. e4 {[%clk 0:03:00]}  e6 {[%clk 0:02:56]} 2. d4 {[%clk 0:02:59]}  d5 {[%clk 0:02:57]} 3. Nc3 {[%clk 0:03:00]}  Bb4 {[%clk 0:02:56]} 4. e5 {[%clk 0:03:00]}  c5 {[%clk 0:02:57]} 5. a3 {[%clk 0:03:00]}  Bxc3+ {[%clk 0:02:58]} 6. bxc3 {[%clk 0:03:00]}  Qa5 {[%clk 0:02:58]} 7. Bd2 {[%clk 0:03:00]}  Qa4 {[%clk 0:02:59]} 8. h4 {[%clk 0:03:00]}  b6 {[%clk 0:02:56]} 9. h5 {[%clk 0:02:59]}  h6 {[%clk 0:02:56]} 10. Rh4 {[%clk 0:03:00]}  Ne7 {[%clk 0:02:54]} 11. Rg4 {[%clk 0:02:57]}  cxd4 {[%clk 0:02:44]} 12. cxd4 {[%clk 0:02:56]}  Ba6 {[%clk 0:02:34]} 13. Nf3 {[%clk 0:01:45]}  Nf5 {[%clk 0:02:28]} 14. Rf4 {[%clk 0:01:42]}  Nc6 {[%clk 0:02:20]} 15. g4 {[%clk 0:01:37]}  Nfe7 {[%clk 0:02:20]} 16. c3 {[%clk 0:01:25]}  Qxd1+ {[%clk 0:02:17]} 17. Rxd1 {[%clk 0:01:26]}  Bxf1 {[%clk 0:02:17]} 18. Kxf1 {[%clk 0:01:27]}  Na5 {[%clk 0:02:12]} 19. a4 {[%clk 0:01:25]}  Rc8 {[%clk 0:02:10]} 20. Ke2 {[%clk 0:01:25]}  Rc4 {[%clk 0:01:57]} 21. Ra1 {[%clk 0:01:25]}  Nec6 {[%clk 0:01:30]} 22. Ne1 {[%clk 0:01:18]}  Nb3 {[%clk 0:01:25]} 23. Ra3 {[%clk 0:01:17]}  Nxd2 {[%clk 0:01:25]} 24. Kxd2 {[%clk 0:01:18]}  Nxe5 {[%clk 0:01:26]} 25. Nc2 {[%clk 0:01:12]}  Nc6 {[%clk 0:01:15]} 26. Ne3 {[%clk 0:01:09]}  Na5 {[%clk 0:01:15]} 27. Kd3 {[%clk 0:01:05]}  Rc7 {[%clk 0:01:11]} 28. Rf3 {[%clk 0:01:04]}  O-O {[%clk 0:01:03]} 29. Rg3 {[%clk 0:01:04]}  Rfc8 {[%clk 0:00:59]} 30. f4 {[%clk 0:01:05]}  Nc4 {[%clk 0:00:55]} 31. Nxc4 {[%clk 0:01:04]}  Rxc4 {[%clk 0:00:56]} 32. Kd2 {[%clk 0:01:02]}  Kf8 {[%clk 0:00:38]} 33. g5 {[%clk 0:00:55]}  Ke7 {[%clk 0:00:38]} 34. Re3 {[%clk 0:00:50]}  Rh8 {[%clk 0:00:34]} 35. Rh3 {[%clk 0:00:47]}  f6 {[%clk 0:00:32]} 36. g6 {[%clk 0:00:47]}  Kd6 {[%clk 0:00:30]} 37. Re3 {[%clk 0:00:47]}  Re8 {[%clk 0:00:30]} 38. a5 {[%clk 0:00:43]}  b5 {[%clk 0:00:30]} 39. a6 {[%clk 0:00:41]}  b4 {[%clk 0:00:28]} 40. Rb3 {[%clk 0:00:40]}  bxc3+ {[%clk 0:00:25]} 41. Kc2 {[%clk 0:00:39]}  Rxd4 {[%clk 0:00:20]} 42. Rb7 {[%clk 0:00:39]}  Re7 {[%clk 0:00:20]} 43. f5 {[%clk 0:00:35]}  e5 {[%clk 0:00:19]} 44. Rxc3 {[%clk 0:00:34]}  Rxb7 {[%clk 0:00:19]} 45. axb7 {[%clk 0:00:34]}  Rb4 {[%clk 0:00:19]} 46. Rb3 {[%clk 0:00:34]}  Rxb3 {[%clk 0:00:20]} 47. Kxb3 {[%clk 0:00:35]}  Kc7 {[%clk 0:00:20]} 48. Kb4 {[%clk 0:00:31]}  d4 {[%clk 0:00:20]} 49. Kc5 {[%clk 0:00:31]}  d3 {[%clk 0:00:19]} 50. Kb5 {[%clk 0:00:24]}  d2 {[%clk 0:00:19]} 51. Ka6 {[%clk 0:00:23]}  d1=Q {[%clk 0:00:19]} 52. Ka5 {[%clk 0:00:23]}  Kxb7 {[%clk 0:00:19]} 53. Kb5 {[%clk 0:00:23]}  e4 {[%clk 0:00:19]} 54. Kc5 {[%clk 0:00:24]}  e3 {[%clk 0:00:19]} 0-1


[Site "https://www.chess.com"]